fUST/lending_fUST_20250519
["ID","MTS","AMOUNT","RATE_DAILY","PERIOD"]
[361616833,1747643432571,-305.6230738,0.00017452,2]
[361616834,1747643432580,-960.0,0.0001758,2]
[361616835,1747643432593,-305.6230738,0.00017762,2]
[361616836,1747643432605,-151.0,0.00017798,2]
[361616837,1747643432620,-500.0,0.00017798,2]
[361616838,1747643432630,-246.0804819,0.00017798,2]
[361616839,1747643432639,-500.0,0.00017798,2]
[361616840,1747643432650,-500.0,0.00017798,2]
[361616841,1747643432660,-151.0,0.00017798,2]
[361616842,1747643432669,-229.942281,0.00017798,2]
[361616843,1747643432678,-521.0,0.00017798,2]
[361616844,1747643432689,-500.0,0.00017798,2]
[361616845,1747643432698,-151.0,0.00017798,2]
[361616846,1747643432708,-534.0,0.00017798,2]
[361616847,1747643432719,-500.0,0.00017798,2]
[361616848,1747643432729,-265.83316824,0.00017798,2]
[361616849,1747643432738,-196.0,0.000178,3]
[361616850,1747643432748,-196.0,0.000178,3]
[361616851,1747643432758,-196.0,0.000178,4]
[361616852,1747643432767,-196.0,0.000178,4]
[361616853,1747643432777,-510.27077655,0.00017803,2]
[361616854,1747643432786,-1343.36244033,0.00017808,2]
[361616855,1747643432796,-24652.13888205,0.00017819,2]
[361616856,1747643432805,-151.0,0.00017825,2]
[361616857,1747643432815,-500.0,0.00017825,2]
[361616858,1747643432824,-500.0,0.00017825,2]
[361616859,1747643432833,-500.0,0.00017825,2]
[361616860,1747643432844,-521.0,0.00017825,2]
[361616861,1747643432854,-500.0,0.00017825,2]
[361616862,1747643432863,-534.0,0.00017825,2]
[361616863,1747643432872,-500.0,0.00017825,2]
[361616864,1747643432882,-1343.3624403,0.00017831,2]
[361616865,1747643432892,-204.05354454,0.00017853,2]
[361616866,1747643432901,-500.0,0.00017853,2]
[361616867,1747643432911,-500.0,0.00017853,2]
[361616868,1747643432921,-500.0,0.00017853,2]
[361616869,1747643432931,-521.0,0.00017853,2]
[361616870,1747643432941,-500.0,0.00017853,2]
[361616871,1747643432951,-534.0,0.00017853,2]
[361616872,1747643432961,-500.0,0.00017853,2]
[361616873,1747643432970,-1343.3624403,0.00017854,2]
[361616874,1747643432979,-1343.3624403,0.00017876,2]
[361616875,1747643432989,-500.0,0.0001788,2]
[361616876,1747643432998,-500.0,0.0001788,2]
[361616877,1747643433008,-500.0,0.0001788,2]
[361616878,1747643433018,-521.0,0.0001788,2]
[361616879,1747643433027,-595.96084251,0.0001788,2]
[361616880,1747643433036,-534.0,0.0001788,2]
[361616881,1747643433046,-500.0,0.0001788,2]
[361616882,1747643433056,-1343.3624403,0.00017899,2]
[361616883,1747643433066,-522.25829519,0.00017899,2]
[361616884,1747643433076,-530.07893433,0.00017899,2]
[361616885,1747643433085,-598.76936669,0.00017908,2]
[361616886,1747643433094,-500.0,0.00017908,2]
[361616887,1747643433104,-500.0,0.00017908,2]
[361616888,1747643433114,-521.0,0.00017908,2]
[361616889,1747643433123,-534.0,0.00017908,2]
[361616890,1747643433132,-500.0,0.00017908,2]
[361616891,1747643433142,-500.0,0.00017935,2]
[361616892,1747643433151,-233.36984205,0.00017935,2]
[361616893,1747643433161,-521.0,0.00017935,2]
[361616894,1747643433171,-534.0,0.00017935,2]
[361616895,1747643433180,-500.0,0.00017935,2]
[361616896,1747643433190,-596.21248544,0.00017962,2]
[361616897,1747643433199,-521.0,0.00017962,2]
[361616898,1747643433208,-534.0,0.00017962,2]
[361616899,1747643433217,-500.0,0.00017962,2]
[361616900,1747643433227,-501.90936387,0.00017973,2]
[361616901,1747643433237,-521.0,0.0001799,2]
[361616902,1747643433246,-534.0,0.0001799,2]
[361616903,1747643433256,-500.0,0.0001799,2]
[361616904,1747643433265,-500.0,0.00017998,2]
[361616905,1747643433275,-359.86161752,0.00017998,2]
[361616906,1747643433285,-400.0,0.00017998,2]
[361616907,1747643433294,-500.0,0.00017998,2]
[361616908,1747643433304,-500.0,0.00017998,2]
[361616909,1747643433314,-244.81322329,0.00017998,2]
[361616910,1747643433323,-448.8868411,0.00017998,2]
[361616911,1747643433333,-500.0,0.00017998,2]
[361616912,1747643433344,-500.0,0.00017998,2]
[361616913,1747643433354,-500.0,0.00017998,2]
[361616914,1747643433363,-500.0,0.00017998,2]
[361616915,1747643433373,-315.0,0.00017998,2]
[361616916,1747643433382,-630.0,0.00017998,2]
[361616917,1747643433392,-787.74487182,0.00017999,3]
[361616918,1747643433402,-781.84497149,0.00017999,2]
[361616919,1747643433412,-242073.69154983,0.00017999,5]
[361616989,1747643440366,-5000.0,0.00016047,2]
[361616991,1747643440377,-300.0,0.00016209,2]
[361616993,1747643440387,-500.0,0.00017447,2]
[361616996,1747643440399,-500.0,0.00017447,2]
[361616998,1747643440409,-346.63303208,0.00017447,2]
[361617001,1747643440427,-153.36696792,0.00017447,2]
[361617003,1747643440440,-500.0,0.00017447,2]
[361617005,1747643440450,-31.11796089,0.00017447,2]
[361619130,1747643464722,700.0,0.00027397,120]
[361619291,1747643481583,560.60199,0.00027397,120]
[361619295,1747643867832,3887.12,0.00027397,120]
[361619297,1747644048626,1005.38371332,0.00024926,30]
[361619298,1747644152731,1000.0,0.00024926,30]
[361619299,1747644153152,1000.0,0.00024926,30]
[361619300,1747644153539,1000.0,0.00024926,30]
[361619301,1747644154011,1000.0,0.00024926,30]
[361619302,1747644154387,1000.0,0.00024926,30]
[361619303,1747644154753,1319.376105,0.00024926,30]
[361619304,1747644196883,756.53637795,0.00027397,120]
[361619305,1747644355204,700.0,0.00027397,120]
[361619306,1747644355464,777.23873903,0.00027397,120]
[361619311,1747644558564,420.451492,0.00027397,120]
[361619330,1747644632430,-5000.0,0.00013562,2]
[361619331,1747644632440,-292.509509,0.00013699,2]
[361619332,1747644632449,-300.0,0.00016099,2]
[361619333,1747644632459,-10262.4511641,0.000161,2]
[361619334,1747644632469,-5353.033338,0.00016534,2]
[361619335,1747644632479,-234.31102344,0.000169,2]
[361619336,1747644632487,-234.31102324,0.00017176,2]
[361619337,1747644632497,-562.10270788,0.00017444,2]
[361619338,1747644632506,-500.0,0.00017445,2]
[361619339,1747644632515,-500.0,0.00017445,2]
[361619340,1747644632524,-500.0,0.00017445,2]
[361619341,1747644632533,-314.06211213,0.00017445,2]
[361619342,1747644632543,-500.0,0.00017445,2]
[361619343,1747644632552,-500.0,0.00017445,2]
[361619345,1747644632562,-500.0,0.00017445,2]
[361619347,1747644632572,-500.0,0.00017445,2]
[361619348,1747644632581,-500.0,0.00017445,2]
[361619349,1747644632590,-500.0,0.00017445,2]
[361619350,1747644632600,-500.0,0.00017445,2]
[361619351,1747644632610,-500.0,0.00017445,2]
[361619352,1747644632620,-500.0,0.00017445,2]
[361619353,1747644632632,-55.29922366,0.00017445,2]
[361619381,1747644638234,-444.70077634,0.00017445,2]
[361619383,1747644638243,-456.09343148,0.00017445,2]
[361619402,1747644638410,-86.4530529,0.00017445,2]
[361619404,1747644638421,-500.0,0.00017445,2]
[361619406,1747644638431,-500.0,0.00017445,2]
[361619408,1747644638441,-500.0,0.00017445,2]
[361619410,1747644638451,-500.0,0.00017445,2]
[361619412,1747644638460,-500.0,0.00017445,2]
[361619414,1747644638469,-500.0,0.00017445,2]
[361619416,1747644638479,-500.0,0.00017445,2]
[361619418,1747644638489,-500.0,0.00017445,2]
[361619420,1747644638498,-500.0,0.00017445,2]
[361619422,1747644638507,-500.0,0.00017445,2]
[361619424,1747644638517,-500.0,0.00017445,2]
[361619426,1747644638527,-500.0,0.00017445,2]
[361619428,1747644638536,-500.0,0.00017445,2]
[361619430,1747644638547,-500.0,0.00017445,2]
[361619432,1747644638557,-500.0,0.00017445,2]
[361619434,1747644638568,-211.3469571,0.00017445,2]
[361619437,1747644638585,-288.6530429,0.00017445,2]
[361619439,1747644638594,-211.3469571,0.00017445,2]
[361620087,1747644646475,-176.0,0.00016438,3]
[361620088,1747644646484,-5000.0,0.0001727,2]
[361620090,1747644646494,-288.6530429,0.00017445,2]
[361620092,1747644646503,-500.0,0.00017445,2]
[361620094,1747644646513,-500.0,0.00017445,2]
[361620096,1747644646523,-500.0,0.00017445,2]
[361620098,1747644646533,-500.0,0.00017445,2]
[361620100,1747644646542,-500.0,0.00017445,2]
[361620101,1747644646552,-500.0,0.00017445,2]
[361620103,1747644646562,-600.0,0.00017445,2]
[361620105,1747644646571,-500.0,0.00017445,2]
[361620107,1747644646580,-500.0,0.00017445,2]
[361620109,1747644646590,-500.0,0.00017445,2]
[361620111,1747644646599,-500.0,0.00017445,2]
[361620113,1747644646608,-500.0,0.00017445,2]
[361620114,1747644646617,-572.51201727,0.00017445,2]
[361620116,1747644646626,-572.51201727,0.00017445,2]
[361620118,1747644646635,-572.51201727,0.00017445,2]
[361620120,1747644646645,-572.51201727,0.00017445,2]
[361620122,1747644646654,-572.51201727,0.00017445,2]
[361620124,1747644646664,-572.51201727,0.00017445,2]
[361620126,1747644646673,-572.51201727,0.00017445,2]
[361620127,1747644646682,-572.51201727,0.00017445,2]
[361620129,1747644646691,-572.51201727,0.00017445,2]
[361620131,1747644646700,-572.51201727,0.00017445,2]
[361620133,1747644646709,-572.51201727,0.00017445,2]
[361620135,1747644646719,-572.51201727,0.00017445,2]
[361620137,1747644646728,-572.51201727,0.00017445,2]
[361620138,1747644646737,-572.51201727,0.00017445,2]
[361620140,1747644646746,-51.28488732,0.00017445,2]
[361620142,1747644646759,-521.22712995,0.00017445,2]
[361620144,1747644646768,-572.51201727,0.00017445,2]
[361620146,1747644646778,-572.51201727,0.00017445,2]
[361620148,1747644646788,-572.51201727,0.00017445,2]
[361620150,1747644646798,-572.51201727,0.00017445,2]
[361620152,1747644646807,-572.51201727,0.00017445,2]
[361620154,1747644646816,-572.51201727,0.00017445,2]
[361620156,1747644646825,-572.51201727,0.00017445,2]
[361620157,1747644646834,-572.51201727,0.00017445,2]
[361620159,1747644646843,-572.51201727,0.00017445,2]
[361620161,1747644646853,-572.51201727,0.00017445,2]
[361620163,1747644646862,-572.51201727,0.00017445,2]
[361620165,1747644646872,-572.51201727,0.00017445,2]
[361620167,1747644646881,-572.51201727,0.00017445,2]
[361620169,1747644646890,-572.51201727,0.00017445,2]
[361620170,1747644646900,-572.51201727,0.00017445,2]
[361620172,1747644646909,-572.51201727,0.00017445,2]
[361620174,1747644646918,-572.51201727,0.00017445,2]
[361620176,1747644646928,-572.51201727,0.00017445,2]
[361620178,1747644646938,-572.51201727,0.00017445,2]
[361620180,1747644646951,-572.51201727,0.00017445,2]
[361620182,1747644646960,-572.51201727,0.00017445,2]
[361620184,1747644646969,-572.51201727,0.00017445,2]
[361620185,1747644646979,-572.51201727,0.00017445,2]
[361620187,1747644646988,-572.51201727,0.00017445,2]
[361620189,1747644646999,-572.51201727,0.00017445,2]
[361620191,1747644647011,-572.51201727,0.00017445,2]
[361620193,1747644647021,-72.48506082,0.00017445,2]
[361620195,1747644647033,-500.02695645,0.00017445,2]
[361620196,1747644647043,-572.51201727,0.00017445,2]
[361620198,1747644647053,-572.51201727,0.00017445,2]
[361620200,1747644647063,-572.51201727,0.00017445,2]
[361620202,1747644647072,-572.51201727,0.00017445,2]
[361620204,1747644647083,-572.51201727,0.00017445,2]
[361620206,1747644647092,-572.51201727,0.00017445,2]
[361620208,1747644647101,-572.51201727,0.00017445,2]
[361620209,1747644647111,-572.51201727,0.00017445,2]
[361620211,1747644647120,-325.79076415,0.00017445,2]
[361620213,1747644647131,-246.72125312,0.00017445,2]
[361620215,1747644647141,-280.24874688,0.00017445,2]
[361620929,1747644768304,1450370.0,0.00027397,120]
[361620930,1747644822566,69860.25,0.00024927,30]
[361620931,1747645172104,638236.07,0.00027397,120]
[361620932,1747645348996,1000.0,0.00024956,30]
[361620933,1747645349313,1000.0,0.00024956,30]
[361620934,1747645349714,1781.636015,0.00024956,30]
[361620936,1747645398309,375.0,0.00027397,120]
[361620937,1747645446452,373.67477059,0.00027397,120]
[361622402,1747645508930,5000.1,0.00027397,120]
[361622403,1747645511415,10000.0,0.00024965,30]
[361622404,1747645590689,315.338619,0.00027397,120]
[361622438,1747645837348,-5000.0,0.00013291,2]
[361622440,1747645837358,-1000.0,0.00013562,2]
[361622441,1747645837368,-295.292887,0.00013699,2]
[361622442,1747645837377,-1000.0,0.00013699,2]
[361622443,1747645837386,-300.0,0.00016171,2]
[361622445,1747645837400,-5241.8303954,0.00016172,2]
[361622447,1747645837410,-300.0,0.00016629,2]
[361622449,1747645837419,-2291.676723,0.0001663,2]
[361622451,1747645837428,-2008.0,0.000169,2]
[361622453,1747645837440,-376.60175255,0.000169,2]
[361622455,1747645837450,-1499.99999901,0.00017,2]
[361622457,1747645837459,-190.4430534,0.00017,2]
[361622459,1747645837468,-1030.9995212,0.00017,2]
[361622460,1747645837480,-579.92132107,0.00017103,2]
[361622463,1747645837489,-376.60175254,0.00017176,2]
[361622465,1747645837498,-151.0,0.00017398,2]
[361622467,1747645837507,-151.0,0.00017398,2]
[361622469,1747645837516,-151.0,0.00017398,2]
[361622470,1747645837526,-151.0,0.00017398,2]
[361622473,1747645837535,-151.0,0.00017398,2]
[361622475,1747645837544,-151.0,0.00017398,2]
[361622477,1747645837554,-151.0,0.00017398,2]
[361622479,1747645837563,-151.0,0.00017398,2]
[361622481,1747645837573,-798.0,0.000174,2]
[361622483,1747645837583,-191.0,0.000174,3]
[361622484,1747645837592,-151.0,0.00017445,2]
[361622486,1747645837601,-376.60175254,0.00017452,2]
[361622488,1747645837611,-376.60175254,0.00017728,2]
[361622489,1747645837620,-447.78748011,0.00017861,2]
[361622490,1747645837630,-500.0,0.00017906,2]
[361622491,1747645837640,-500.99575009,0.00017935,2]
[361622492,1747645837649,-502.33775642,0.00017936,2]
[361622493,1747645837659,-500.0,0.00017961,2]
[361622494,1747645837669,-212.50057946,0.00017961,2]
[361622495,1747645837678,-648.24464338,0.00017961,2]
[361622496,1747645837688,-383.53341446,0.00017971,2]
[361622497,1747645837697,-500.0,0.00017971,2]
[361622498,1747645837706,-500.0,0.00017971,2]
[361622499,1747645837716,-500.0,0.00017971,2]
[361622500,1747645837725,-272.74891524,0.00017971,2]
[361622501,1747645837734,-500.0,0.00017971,2]
[361622502,1747645837743,-500.0,0.00017971,2]
[361622503,1747645837753,-500.0,0.00017971,2]
[361622504,1747645837762,-500.0,0.00017971,2]
[361622505,1747645837771,-500.0,0.00017971,2]
[361622506,1747645837780,-500.0,0.00017971,2]
[361622507,1747645837790,-500.0,0.00017971,2]
[361622508,1747645837799,-500.0,0.00017971,2]
[361622509,1747645837809,-500.0,0.00017971,2]
[361622510,1747645837818,-500.0,0.00017971,2]
[361622511,1747645837828,-500.0,0.00017971,2]
[361622512,1747645837837,-500.0,0.00017971,2]
[361622513,1747645837847,-217.80531166,0.00017971,2]
[361622514,1747645837857,-500.0,0.00017971,2]
[361622515,1747645837866,-500.0,0.00017971,2]
[361622516,1747645837875,-500.0,0.00017971,2]
[361622517,1747645837885,-500.0,0.00017971,2]
[361622518,1747645837894,-500.0,0.00017971,2]
[361622519,1747645837904,-500.0,0.00017971,2]
[361622520,1747645837913,-500.0,0.00017971,2]
[361622521,1747645837922,-266.31577708,0.00017971,2]
[361622523,1747645837943,-233.68422292,0.00017971,2]
[361622524,1747645837952,-500.0,0.00017971,2]
[361622525,1747645837961,-650.0,0.00017971,2]
[361622526,1747645837970,-500.0,0.00017971,2]
[361622527,1747645837980,-500.0,0.00017971,2]
[361622528,1747645837989,-500.0,0.00017971,2]
[361622529,1747645837998,-500.0,0.00017971,2]
[361622530,1747645838007,-500.0,0.00017971,2]
[361622531,1747645838017,-500.0,0.00017971,2]
[361622532,1747645838026,-500.0,0.00017971,2]
[361622533,1747645838035,-500.0,0.00017971,2]
[361622534,1747645838045,-174.18220176,0.00017971,2]
[361622535,1747645838054,-500.0,0.00017971,2]
[361622536,1747645838065,-500.0,0.00017971,2]
[361622537,1747645838075,-500.0,0.00017971,2]
[361622538,1747645838084,-500.0,0.00017971,2]
[361622539,1747645838094,-500.0,0.00017971,2]
[361622540,1747645838104,-500.0,0.00017971,2]
[361622541,1747645838113,-500.0,0.00017971,2]
[361622542,1747645838123,-339.66214668,0.00017971,2]
[361622543,1747645838133,-500.0,0.00017971,2]
[361622544,1747645838142,-500.0,0.00017971,2]
[361622545,1747645838152,-500.0,0.00017971,2]
[361622546,1747645838162,-500.0,0.00017971,2]
[361622547,1747645838171,-500.0,0.00017971,2]
[361622548,1747645838181,-500.0,0.00017971,2]
[361622549,1747645838190,-500.0,0.00017971,2]
[361622550,1747645838199,-500.0,0.00017971,2]
[361622551,1747645838208,-500.0,0.00017971,2]
[361622552,1747645838217,-500.0,0.00017971,2]
[361622553,1747645838226,-500.0,0.00017971,2]
[361622554,1747645838236,-500.0,0.00017971,2]
[361622555,1747645838246,-500.0,0.00017971,2]
[361622556,1747645838256,-500.0,0.00017971,2]
[361622557,1747645838265,-500.0,0.00017971,2]
[361622558,1747645838275,-500.0,0.00017971,2]
[361622559,1747645838284,-500.0,0.00017971,2]
[361622560,1747645838293,-500.0,0.00017971,2]
[361622562,1747645838303,-500.0,0.00017971,2]
[361622564,1747645838313,-500.0,0.00017971,2]
[361622566,1747645838322,-500.0,0.00017971,2]
[361622568,1747645838331,-500.0,0.00017971,2]
[361622570,1747645838341,-500.0,0.00017971,2]
[361622571,1747645838350,-500.0,0.00017971,2]
[361622573,1747645838359,-500.0,0.00017971,2]
[361622575,1747645838368,-500.0,0.00017971,2]
[361622576,1747645838377,-500.0,0.00017971,2]
[361622577,1747645838386,-500.0,0.00017971,2]
[361622579,1747645838396,-500.0,0.00017971,2]
[361622580,1747645838409,-500.0,0.00017971,2]
[361622581,1747645838418,-500.0,0.00017971,2]
[361622582,1747645838427,-500.0,0.00017971,2]
[361622583,1747645838436,-500.0,0.00017971,2]
[361622584,1747645838447,-500.0,0.00017971,2]
[361622585,1747645838457,-500.0,0.00017971,2]
[361622586,1747645838466,-151.722104,0.00017973,2]
[361622587,1747645838475,-157.045443,0.00017973,2]
[361622588,1747645838485,-151.0,0.00017973,2]
[361622589,1747645838495,-151.0,0.00017973,2]
[361622590,1747645838505,-151.0,0.00017973,2]
[361622591,1747645838514,-500.0,0.00017989,2]
[361622592,1747645838523,-500.0,0.00017989,2]
[361622593,1747645838532,-634.55007695,0.00017989,2]
[361622594,1747645838542,-587.11715992,0.00017989,2]
[361622595,1747645838551,-500.0,0.00017989,2]
[361622596,1747645838561,-500.0,0.00017989,2]
[361622597,1747645838571,-531.61732517,0.00017989,2]
[361622598,1747645838580,-500.0,0.00017989,2]
[361622599,1747645838589,-500.0,0.00017989,2]
[361622600,1747645838598,-500.0,0.00017989,2]
[361622601,1747645838607,-500.0,0.00017989,2]
[361622602,1747645838616,-500.0,0.00017989,2]
[361622603,1747645838626,-500.0,0.00017989,2]
[361622604,1747645838635,-500.0,0.00017989,2]
[361622605,1747645838644,-500.0,0.00017989,2]
[361622606,1747645838654,-500.0,0.00017989,2]
[361622607,1747645838663,-500.0,0.00017989,2]
[361622608,1747645838673,-500.0,0.00017989,2]
[361622609,1747645838682,-500.0,0.00017989,2]
[361622610,1747645838691,-500.0,0.0001799,2]
[361622611,1747645838701,-500.0,0.0001799,2]
[361622612,1747645838710,-500.0,0.0001799,2]
[361622613,1747645838719,-500.0,0.0001799,2]
[361622614,1747645838728,-500.0,0.0001799,2]
[361622615,1747645838738,-500.0,0.0001799,2]
[361622616,1747645838748,-500.0,0.0001799,2]
[361622617,1747645838757,-200.35953789,0.0001799,2]
[361622618,1747645838766,-500.0,0.0001799,2]
[361622619,1747645838776,-500.0,0.0001799,2]
[361622620,1747645838785,-500.0,0.0001799,2]
[361622621,1747645838794,-252.54660187,0.0001799,2]
[361622622,1747645838803,-500.0,0.0001799,2]
[361622623,1747645838813,-500.0,0.0001799,2]
[361622624,1747645838822,-500.0,0.0001799,2]
[361622625,1747645838832,-151.06269562,0.0001799,2]
[361622626,1747645838841,-624.0,0.0001799,2]
[361622627,1747645838850,-500.0,0.0001799,2]
[361622628,1747645838860,-500.0,0.0001799,2]
[361622629,1747645838869,-500.0,0.0001799,2]
[361622630,1747645838879,-500.0,0.0001799,2]
[361622631,1747645838888,-500.0,0.0001799,2]
[361622632,1747645838898,-500.0,0.0001799,2]
[361622633,1747645838907,-151.0,0.0001799,2]
[361622634,1747645838916,-225.12102114,0.0001799,2]
[361622635,1747645838925,-270.02360448,0.0001799,2]
[361622636,1747645838935,-500.0,0.0001799,2]
[361622637,1747645838944,-151.0,0.0001799,2]
[361622638,1747645838953,-151.0,0.0001799,2]
[361622639,1747645838962,-500.0,0.0001799,2]
[361622640,1747645838972,-500.0,0.0001799,2]
[361622641,1747645838981,-151.945001,0.0001799,2]
[361622642,1747645838990,-153.975971,0.0001799,2]
[361622643,1747645839000,-500.0,0.0001799,2]
[361622644,1747645839009,-500.0,0.0001799,2]
[361622645,1747645839019,-151.0,0.0001799,2]
[361622646,1747645839029,-500.0,0.0001799,2]
[361622647,1747645839038,-205.79858013,0.0001799,2]
[361622648,1747645839047,-151.0,0.0001799,2]
[361622649,1747645839056,-529.0,0.0001799,2]
[361622650,1747645839066,-500.0,0.0001799,2]
[361622651,1747645839076,-500.0,0.0001799,2]
[361622652,1747645839087,-151.0,0.00018,2]
[361622653,1747645839096,-151.0,0.00018,2]
[361622654,1747645839105,-376.60175254,0.00018003,2]
[361622655,1747645839114,-500.0,0.00018017,2]
[361622656,1747645839123,-500.0,0.00018017,2]
[361622657,1747645839132,-500.0,0.00018017,2]
[361622658,1747645839140,-500.0,0.00018017,2]
[361622659,1747645839149,-500.0,0.00018017,2]
[361622660,1747645839158,-500.0,0.00018017,2]
[361622661,1747645839167,-500.0,0.00018017,2]
[361622662,1747645839176,-500.0,0.00018017,2]
[361622663,1747645839185,-500.0,0.00018017,2]
[361622664,1747645839194,-500.0,0.00018017,2]
[361622665,1747645839203,-500.0,0.00018017,2]
[361622666,1747645839212,-500.0,0.00018017,2]
[361622667,1747645839221,-500.0,0.00018017,2]
[361622668,1747645839229,-624.0,0.00018017,2]
[361622669,1747645839238,-500.0,0.00018017,2]
[361622670,1747645839247,-500.0,0.00018017,2]
[361622671,1747645839256,-500.0,0.00018017,2]
[361622672,1747645839265,-500.0,0.00018017,2]
[361622673,1747645839275,-500.0,0.00018017,2]
[361622674,1747645839283,-500.0,0.00018017,2]
[361622675,1747645839293,-181.49665776,0.00018017,2]
[361622676,1747645839303,-650.81397196,0.00018017,2]
[361622677,1747645839312,-151.0,0.00018017,2]
[361622678,1747645839321,-151.0,0.00018017,2]
[361622679,1747645839340,-500.0,0.00018017,2]
[361622680,1747645839349,-500.0,0.00018017,2]
[361622681,1747645839359,-500.0,0.00018017,2]
[361622682,1747645839369,-500.0,0.00018017,2]
[361622683,1747645839379,-500.0,0.00018017,2]
[361622684,1747645839388,-231.99903733,0.00018017,2]
[361622685,1747645839398,-529.0,0.00018017,2]
[361622686,1747645839410,-500.0,0.00018017,2]
[361622687,1747645839419,-500.0,0.00018017,2]
[361622688,1747645839429,-151.0,0.00018018,2]
[361622689,1747645839438,-500.0,0.00018045,2]
[361622690,1747645839448,-500.0,0.00018045,2]
[361622691,1747645839457,-243.19741389,0.00018045,2]
[361622692,1747645839467,-500.0,0.00018045,2]
[361622693,1747645839476,-500.0,0.00018045,2]
[361622694,1747645839486,-500.0,0.00018045,2]
[361622695,1747645839496,-500.0,0.00018045,2]
[361622696,1747645839506,-500.0,0.00018045,2]
[361622697,1747645839515,-500.0,0.00018045,2]
[361622698,1747645839524,-442.02665364,0.00018045,2]
[361622699,1747645839534,-517.52918241,0.00018045,2]
[361622700,1747645839544,-500.0,0.00018045,2]
[361622701,1747645839553,-500.0,0.00018045,2]
[361622702,1747645839564,-624.0,0.00018045,2]
[361622703,1747645839574,-500.0,0.00018045,2]
[361622704,1747645839583,-500.0,0.00018045,2]
[361622705,1747645839593,-382.73495608,0.00018045,2]
[361622706,1747645839603,-500.0,0.00018045,2]
[361622707,1747645839612,-500.0,0.00018045,2]
[361622708,1747645839621,-500.0,0.00018045,2]
[361622709,1747645839632,-151.0,0.00018045,2]
[361622710,1747645839642,-163.39351492,0.00018045,2]
[361622711,1747645839652,-633.20072424,0.00018045,2]
[361622712,1747645839662,-500.0,0.00018045,2]
[361622713,1747645839671,-500.0,0.00018045,2]
[361622714,1747645839681,-500.0,0.00018045,2]
[361622715,1747645839691,-500.0,0.00018045,2]
[361622716,1747645839700,-529.0,0.00018045,2]
[361622717,1747645839710,-500.0,0.00018045,2]
[361622718,1747645839719,-500.0,0.00018045,2]
[361622719,1747645839728,-174.115891,0.00018072,2]
[361622720,1747645839738,-152.150365,0.00018072,2]
[361622721,1747645839747,-500.0,0.00018072,2]
[361622722,1747645839756,-500.0,0.00018072,2]
[361622723,1747645839765,-500.0,0.00018072,2]
[361622724,1747645839775,-500.0,0.00018072,2]
[361622725,1747645839784,-500.0,0.00018072,2]
[361622726,1747645839794,-500.0,0.00018072,2]
[361622727,1747645839803,-500.0,0.00018072,2]
[361622728,1747645839814,-500.0,0.00018072,2]
[361622729,1747645839824,-500.0,0.00018072,2]
[361622730,1747645839962,-500.0,0.00018072,2]
[361622731,1747645839973,-624.0,0.00018072,2]
[361622732,1747645839983,-154.74210211,0.00018072,2]
[361622733,1747645839992,-538.20443934,0.00018072,2]
[361622734,1747645840002,-500.0,0.00018072,2]
[361622735,1747645840011,-500.0,0.00018072,2]
[361622736,1747645840021,-500.0,0.00018072,2]